Cogmind - Beta 12 @@@ ROGUE MODE // 2023.03.09 @ 14:19:05 Player: Zirov Result: Self-destructed Performance ------------- Evolutions (1) 500 Regions Visited (3) 600 Robots Destroyed (47) 235 Value Destroyed (1077) 1077 Prototype IDs (3) 60 Alien Tech Used (0) 0 Bonus (412) 412 TOTAL SCORE: 2884 Bonus ------- High Alert Combat Kills 155 Follower Combat Kills 275 Friendly Fire -18 Cogmind --------- Core Integrity 249/400 Matter 251/300 Energy 265/265 System Corruption 0% Temperature Cool (61) Movement Walking (190) Ox1 Location -9/Storage Parts ------- > --- POWER (1) -------- Improved Ion Engine > --- PROPULSION (3) --- Aluminum Leg Improved Aluminum Leg > --- UTILITY (2) ------ Medium Storage Unit Improved Targeting Computer > --- WEAPON (3) ------- Improved Assault Rifle Improved Assault Rifle Improved Assault Rifle > --- INVENTORY (10) --- Ion Engine Ion Engine Aluminum Leg Assault Rifle Light Assault Rifle Light Assault Rifle Improved Assault Rifle Improved Light Cannon Mini Grenade Launcher Peak State ------------ > --- POWER ------------ Improved Ion Engine > --- PROPULSION ------- Aluminum Leg Improved Aluminum Leg Improved Aluminum Leg > --- UTILITY ---------- Medium Storage Unit Improved Targeting Computer > --- WEAPON ----------- Improved Assault Rifle Improved Assault Rifle Improved Assault Rifle > --- INVENTORY -------- Ion Engine Ion Engine Aluminum Leg Assault Rifle Light Assault Rifle Light Assault Rifle Improved Assault Rifle Improved Light Cannon Mini Grenade Launcher [Rating: 20] Favorites ----------- Power Ion Engine Engine Ion Engine Propulsion Aluminum Leg Leg Aluminum Leg Utility Small Storage Unit Storage Small Storage Unit Processor Improved Targeting Computer Protection Medium Armor Plating Weapon Improved Assault Rifle Ballistic Gun Improved Assault Rifle Build | -11 -10 -9 -9 ------- Run | Jun Mat Mat Sto Slots Evolved 2 | . . 2 . Power . | . . . . Propulsion 1 | . . 1 . Utility . | . . . . Weapon 1 | . . 1 . Parts Attached 29 | 6 3 15 5 Power 3 | 1 . 2 . Engine 3 | 1 . 2 . Core . | . . . . Reactor . | . . . . Propulsion 11 | 2 1 4 4 Treads . | . . . . Leg 11 | 2 1 4 4 Wheel . | . . . . Hover . | . . . . Flight . | . . . . Utility 5 | 1 . 3 1 Device . | . . . . Storage 2 | 1 . 1 . Processor 1 | . . . 1 Hackware . | . . . . Protection 2 | . . 2 . Artifact . | . . . . Weapon 10 | 2 2 6 . Energy Gun . | . . . . Energy Cannon . | . . . . Ballistic Gun 10 | 2 2 6 . Ballistic Cannon . | . . . . Launcher . | . . . . Special Weapon . | . . . . Impact Weapon . | . . . . Slashing Weapon . | . . . . Piercing Weapon . | . . . . Special Melee Weapon . | . . . . Unidentified Prototypes 1 | . . 1 . Parts Lost 4 | . . 2 2 Power . | . . . . Propulsion 2 | . . 1 1 Utility 2 | . . 1 1 Weapon . | . . . . Highest Loss Streak 1 | . . 1 1 To Critical Strikes . | . . . . Average Slot Usage (%) 94 | . 84 96 99 Engine 11 | . 14 11 11 Leg 31 | . 28 32 32 Storage 11 | . 14 11 11 Processor 1 | . . . 5 Protection 5 | . . 8 5 Ballistic Gun 31 | . 27 33 33 Naked Turns . | . . . . Heaviest Build 29 | 13 13 29 29 Greatest Support 36 | 20 20 30 36 Greatest Overweight (x) . | . . . . Average Overweight (x) . | . . . . Largest Inventory Capacity 10 | 8 8 10 10 Average Capacity 8 | 6 8 8 10 Most Carried 10 | 2 3 10 10 Average Carried 6 | 1 2 6 9 Final Capacity 10 | 8 8 10 10 Final Carried 9 | 2 3 8 9 Class Distribution -------------------- 28% | Mutant 24% | Tank 23% | Scavenger-Tank 13% | Scavenger-Gunner 10% | Gunner Dominant Class ---------------- Mutant | -10/Materials Tank | -9/Materials Scavenger-Gunner | -9/Storage Resources | -11 -10 -9 -9 ----------- Run | Jun Mat Mat Sto Matter Collected 1211 | 260 97 521 333 Remotely . | . . . . Salvage Created 1816 | . 97 733 986 Parts 100 | . 3 56 41 Haulers Intercepted 6 | . 1 1 4 Recyclers Shooed 1 | . . . 1 Parts Field Recycled . | . . . . Retrieved Matter . | . . . . Parts Self-Destructed . | . . . . Prevented . | . . . . Kills | -11 -10 -9 -9 ------- Run | Jun Mat Mat Sto Combat Hostiles Destroyed 33 | . 1 18 14 Guns 33 | . 1 18 14 Classes Destroyed 9 | . 2 4 3 Worker 1 | . . . 1 Builder 1 | . . 1 . Hauler 6 | . 1 1 4 Recycler 2 | . . . 2 Watcher 4 | . . 2 2 Swarmer 11 | . . 7 4 Grunt 12 | . 1 6 5 Duelist 1 | . . . 1 Sentry 9 | . . 5 4 Best Kill Streak 7 | . 1 7 7 Combat Bots Only 6 | . 1 6 4 Max Kills in Single Turn 2 | . 1 2 2 Gunslinging 1 | . . 1 1 Exploded . | . . . . Melee . | . . . . Uniques/NPCs Destroyed . | . . . . Combat | -11 -10 -9 -9 -------- Run | Jun Mat Mat Sto Damage Taken 1167 | . 11 693 463 Core 151 | . . 72 79 Absorbed by Shields . | . . . . Core Remaining (%) 100 | 100 100 . . Volleys Fired 109 | . 19 52 38 Largest 3 | . 2 3 3 Hottest 69 | . 40 69 69 Shots Fired 308 | . 38 156 114 Gun 308 | . 38 156 114 Cannon . | . . . . Launcher . | . . . . Special . | . . . . Kinetic 308 | . 38 156 114 Thermal . | . . . . Explosive . | . . . . Electromagnetic . | . . . . Robot Hit Streak 25 | . 6 13 25 Robot Miss Streak 4 | . 3 4 4 Penetration Max . | . . . . Secondary Targets 6 | . . 2 4 Max Gunslinging Chain 1 | . . 1 1 Shots Hit Robots 198 | . 13 101 84 Core Hits 76 | . 4 38 34 Critical Kills . | . . . . Critical Parts Destroyed 1 | . . 1 . Critical Strikes 1 | . . 1 . Destroy 1 | . . 1 . Melee Attacks . | . . . . Impact . | . . . . Slashing . | . . . . Piercing . | . . . . Sneak Attacks . | . . . . Combat Hostiles . | . . . . Follow-up Attacks . | . . . . Damage Inflicted 2846 | . 141 1358 1347 Guns 2836 | . 141 1348 1347 Cannons . | . . . . Explosions . | . . . . Melee . | . . . . Ramming 10 | . . 10 . Kinetic 2836 | . 141 1348 1347 Thermal . | . . . . Explosive . | . . . . Electromagnetic . | . . . . Impact . | . . . . Slashing . | . . . . Piercing . | . . . . Highest Corruption . | . . . . Average Corruption . | . . . . Corruption Purged . | . . . . Corruption Blocked . | . . . . Overload Shots . | . . . . Overflow Damage . | . . . . Projectiles . | . . . . Explosions . | . . . . Melee . | . . . . Knockbacks . | . . . . Impact . | . . . . Kinetic . | . . . . Secondary . | . . . . Self-Inflicted Damage . | . . . . Shots . | . . . . Rammed . | . . . . Targets Rammed 3 | . . 3 . Kicked 3 | . . 3 . Crushed . | . . . . Highest Temperature 94 | . . 94 83 Average Temperature 28 | . . 31 23 Received Heat Transfer 357 | . 6 174 177 Siege Activations . | . . . . Robots Corrupted . | . . . . Combat Hostiles . | . . . . Parts Fried . | . . . . Impact Corruptions . | . . . . Robots Melted . | . . . . Combat Hostiles . | . . . . Parts Melted . | . . . . Heat Transferred . | . . . . Parts Sabotaged . | . . . . Parts Stolen . | . . . . Parts Stripped . | . . . . Power Chain Reactions . | . . . . Missiles Intercepted . | . . . . Alert | -11 -10 -9 -9 ------- Run | Jun Mat Mat Sto Peak Influence 834 | . 42 426 834 Initial 139 | . . 17 139 Average 246 | . 13 215 519 Maximum Alert Level 3 | . . 2 3 Low Security (%) 53 | 100 100 51 10 Level 1 21 | . . 42 13 Level 2 17 | . . 5 50 Level 3 7 | . . . 25 Level 4 . | . . . . Level 5 . | . . . . High Security . | . . . . Max Security . | . . . . Squads Dispatched 7 | . . 3 4 Investigation 2 | . . 2 . Extermination . | . . . . Reinforcement 1 | . . 1 . Assault 3 | . . . 3 Garrison 1 | . . . 1 Intercept . | . . . . Searches Triggered . | . . . . Construction Impeded . | . . . . Haulers Reinforced . | . . . . Active Scanning Responses . | . . . . Cargo Convoy Interrupts . | . . . . Stealth | -11 -10 -9 -9 --------- Run | Jun Mat Mat Sto Distress Signals 5 | . . 3 2 Communications Jammed . | . . . . Distress Signals . | . . . . Times Spotted 64 | . 2 27 35 Peak Tracking Total 9 | . 1 8 9 Tactical Retreats 1 | . . 1 . Traps | -11 -10 -9 -9 ------- Run | Jun Mat Mat Sto Traps Triggered 5 | . 2 2 1 Indirectly . | . . . . Trap Hack Attempts . | . . . . Triggered . | . . . . Disarmed . | . . . . Reprogrammed . | . . . . Reused . | . . . . Traps Extracted . | . . . . Installed . | . . . . Triggered . | . . . . Machines | -11 -10 -9 -9 ---------- Run | Jun Mat Mat Sto Machines Disabled . | . . . . Max in Single Turn . | . . . . Garrison Access 1 | . . . 1 Machines Repaired . | . . . . Machines Sabotaged . | . . . . Overloaded Fab Kills . | . . . . Hacking | -11 -10 -9 -9 --------- Run | Jun Mat Mat Sto Machines Accessed 8 | . 1 4 3 Terminals 5 | . 1 2 2 Fabricators . | . . . . Repair Stations . | . . . . Recycling Units 1 | . . 1 . Scanalyzers 1 | . . 1 . Garrison Access 1 | . . . 1 Total Hacks 18 | . 2 7 9 Successful 9 | . 1 5 3 Failed 9 | . 1 2 6 Catastrophic . | . . . . Database Lockouts . | . . . . Manual 3 | . . 3 . Terminals 14 | . 2 4 8 Fabricators . | . . . . Repair Stations . | . . . . Recycling Units 1 | . . 1 . Scanalyzers 2 | . . 2 . Garrison Access 1 | . . . 1 Terminal Hacks 5 | . 1 2 2 Prototype ID Bank 1 | . . . 1 Branch Access Points 2 | . . 1 1 Registered Components 1 | . 1 . . Zone Layout 1 | . . 1 . Fabricator Hacks . | . . . . Repair Station Hacks . | . . . . Recycling Unit Hacks 1 | . . 1 . Report Inventory 1 | . . 1 . Scanalyzer 2 | . . 2 . Insert Component 1 | . . 1 . Analyze 1 | . . 1 . Garrison Access Hacks 1 | . . . 1 Seal Access 1 | . . . 1 Unauthorized Hacks . | . . . . Terminals . | . . . . Fabricators . | . . . . Repair Stations . | . . . . Recycling Units . | . . . . Scanalyzers . | . . . . Garrison Access . | . . . . Data Cores Recovered . | . . . . Used . | . . . . Hacking Detections 5 | . 1 2 2 Full Trace Events . | . . . . Feedback Events . | . . . . Feedback Blocked . | . . . . Robot Schematics Acquired . | . . . . Robots Built . | . . . . Authchips . | . . . . Time . | . . . . Total Robot Build Rating . | . . . . Part Schematics Acquired 1 | . . 1 . Parts Built . | . . . . Authchips . | . . . . Time . | . . . . Total Part Build Rating . | . . . . Parts Repaired . | . . . . Time . | . . . . Parts Recycled . | . . . . Recycled Matter . | . . . . Retrieved Matter . | . . . . Retrieved Components . | . . . . Parts Scanalyzed 1 | . . 1 . Part Schematics Acquired 1 | . . 1 . Parts Damaged . | . . . . Bothacking | -11 -10 -9 -9 ------------ Run | Jun Mat Mat Sto Used RIF Installer . | . . . . Robots Hacked . | . . . . Non-combat . | . . . . Combat . | . . . . Robot Hacks Applied . | . . . . Relay Couplers Released . | . . . . Fabnet Peak Effective % . | . . . . Robots Rewired . | . . . . Allies Hacked . | . . . . Hacks Repelled . | . . . . Allies | -11 -10 -9 -9 -------- Run | Jun Mat Mat Sto Total Allies 2 | . . . 2 Largest Group 2 | . . . 2 Highest-Rated Group 62 | . . . 62 Highest-Rated Ally 31 | . . . 31 Total Orders . | . . . . Ally Attacks 47 | . . . 47 Total Damage 820 | . . . 820 Kills 12 | . . . 12 Allies Corrupted . | . . . . Allies Melted . | . . . . Intel | -11 -10 -9 -9 ------- Run | Jun Mat Mat Sto Robot Analysis Total . | . . . . Derelict Logs Recovered . | . . . . Drone Launches . | . . . . Drone Recoveries . | . . . . Exploration | -11 -10 -9 -9 ------------- Run | Jun Mat Mat Sto Turns Passed 1466 | 67 358 604 437 Spaces Moved 761 | 54 164 317 226 Core 11 | 11 . . . Treads . | . . . . Legs 750 | 43 164 317 226 Wheels . | . . . . Hover . | . . . . Flight . | . . . . Fastest Speed 50 | 50 120 120 120 Average Speed 118 | 105 120 120 120 Slowest Speed 120 | 120 120 120 120 Overloaded Moves . | . . . . Propulsion Burnouts . | . . . . Robots Hopped . | . . . . Cave-ins Triggered . | . . . . Exploration Rate (%) 28 | 3 31 33 45 Regions Visited 3 Branch Regions 1 Pre-discovered Areas . | . . . . Known Exits Taken 1 | . . 1 . Unknown Exits Taken 2 | 1 1 . . Scrap Searched . | . . . . Spaces Dug . | . . . . Terrain Destroyed . | . . . . Melee . | . . . . Projectile . | . . . . AOE . | . . . . Terrain Rammed . | . . . . Walls Destroyed . | . . . . Machines Disabled . | . . . . Actions | -11 -10 -9 -9 --------- Run | Jun Mat Mat Sto Total 1089 | 61 289 431 308 Wait 171 | . 103 35 33 Move 758 | 53 163 316 226 Hop . | . . . . Pick Up 9 | 2 1 4 2 Fast Attach 12 | 6 3 3 . Attach 4 | . . 3 1 Detach 1 | . . 1 . Swap 13 | . . 9 4 Drop 9 | . . 5 4 Fire 109 | . 19 52 38 Melee . | . . . . Ram . | . . . . Kick 3 | . . 3 . Crush . | . . . . Escape Stasis . | . . . . Rewire . | . . . . Trap . | . . . . Miscellaneous . | . . . . Route ------- -11/Junkyard -10/Materials -9/Materials (discovered 3 exits: Min / *Sto x2) -9/Storage (discovered 1 exit: Rec) History --------- Turn | Location | Event 7 | -11/Junkyard | Discovered new exit (range 15) 68 | -11/Junkyard | Entered Materials 305 | -10/Materials | Build established: Mutant 417 | -10/Materials | Discovered new exit (range 7) 426 | -10/Materials | Entered another Materials area 426 | -9/Materials | Evolved 2 slots: Propulsion x1, Weapon x1 826 | -9/Materials | Identified exit to Mines 826 | -9/Materials | Identified exit to Storage 1030 | -9/Materials | Entered Storage 1044 | -9/Storage | Met a pair of Derelict thieves 1109 | -9/Storage | Garrison activated, responded to threat 1342 | -9/Storage | Identified exit to Recycling 1430 | -9/Storage | First assault squad dispatched 1467 | -9/Storage | Self-destructed Last Messages --------------- 01385_ K-01 Serf cleans the Terminal. 01395_ Y-45 Defender destroyed. 01396_ K-01 Serf cleans the Terminal. 01399_ Acquired 9 matter. 01401_ K-01 Serf cleans the Terminal. 01402_ U-05 Engineer builds a Door. 01421_ K-01 Serf collects debris. 01430_ ALERT: Significant disruption in Zone 1F, assault force dispatched. 01440_ C-30 ARC bursts open, deploying its payload. 01440_ G-47 Trooper unfolds itself. 01440_ L-31 Rogue unfolds itself. 01440_ G-34 Mercenary unfolds itself. 01440_ I-25 Savior unfolds itself. 01454_ Y-45 Defender destroyed. 01454_ Switching to secondary target: L-31 Rogue. 01454_ L-31 Rogue destroyed. 01459_ Imp. Aluminum Leg destroyed. 01460_ G-34 Mercenary destroyed. 01460_ Switching to secondary target: G-47 Trooper. 01463_ G-47 Trooper destroyed. Map ----- +----------------------------------------------------+ | # #??#T!""" """ #?????????????????????????? | | # #??#"!= #?????????????????????????? | | # #??## #?????????????????????????? | | # ![ #???# * #?????????????????????????? | | ######%###???# !%! #?????????????????????????? | | ?????###?????#! [% #?????????????????????????? | | ????? ###########+###?????????????????????????? | | ???? =[=###########????????????????? | | ???? + #????????????????? | | ???? ## #????????????????? | | ?????? ####+##### ## #????????????????? | | ??????????????????# ## #????????????????? | | ??????????????????# ## #????????????????? | | ??????????????????# ## #????????????????? | | ??????????????????# ##! ! #????????????????? | | ??????????????????# ## * #????????????????? | | ?????????????????## ## #????????????????? | | ?????????????????# ####+#############????????? | | ?????????????????# ???????? | | ?????????????????# % ???????? | | ?????????????????# = ???????? | | ?????????????????# ####%#######??????????????? | | ?????????????????#######*[!gi !!!#???????????????? | | ????????????????????####*!%/ !!!#???????????????? | | ????????????????????#""" %*= !! #???????????????? | | ????????????????????#"R @ ""#?????????????? | | ????????????????????#""" T"#?????????????? | | ????????????????????####[ ""T"" ""#?????????????? | | ???????????????????????#%! """"" ###?????????????? | | ??????????????????????? ! #???????????????? | | ???????????????????????###########???????????????? | | | | | | | | | | | | | | | | | | | | | | | | | | | | | | | | | | | | | | | +----------------------------------------------------+ Best States ------------- Heat Dissipation 28 Energy Generation 12 Energy Capacity 265 Matter Stores 300 Matter Capacity 300 Sight Range 16 Terrain Scan Density 10 Armor Coverage 225 Evasion (%) 55 Targeting Accuracy 6 Item Schematics ----------------- Imp. Assault Rifle | -9/Materials | Scanalyzed Robot Schematics ------------------ None Fabricated ------------ Nothing Alien Tech Used ----------------- None Achievements -------------- None Challenges ------------ None Game ------ Seed DrainedAntimissileKatana Manual? 0 Play Time 00:20:58 Cumulative 37.7 hours Start 2023.03.09 @ 06:34:08 End 2023.03.09 @ 14:19:05 Sessions 3 Manual Loads 0 Difficulty Rogue Special Mode None Game No. 40 Rogue 40 Adventurer 0 Explorer 0 Win Type - Total 0 Types 0/0/0/0/0/0/0/0/0 Lore% 24 Gallery% 30 Achievement% 23 Wizard Run 0 Options --------- ASCII 1 Keyboard 1 Movement Numpad Keybinds 0 Fullscreen 1 Font 18/SmallcapsGlow Map View 76x50 Tactical HUD 1 Map Filters NONE Filters NONE Steam 1 RUN: e58cd190-4a30-4f27-8419-4e6759927615